[Event "Norwegian Team Championship 2019"]
[Site "Drammen"]
[Date "2019.06.02"]
[Round "6.3"]
[White "Gandrud, Vegar Koi"]
[Black "Getz, Nicolai"]
[Result "1/2-1/2"]
[ECO "E92"]
[WhiteElo "2325"]
[BlackElo "2380"]
[Annotator "ChessBase"]
[PlyCount "110"]
[EventDate "2019.05.30"]
[EventType "swiss"]
[EventCountry "NOR"]
[SourceTitle "playchess.com"]
[Source "ChessBase"]
[SourceQuality "1"]
[TimeControl "40/5400:1800"]

1. d4 {[%emt 0:00:02]} Nf6 {[%emt 0:00:07]} 2. c4 {[%emt 0:00:06]} g6 {[%emt 0:00:13]} 3. Nc3 {[%emt 0:00:06]} Bg7 {[%emt 0:00:09]} 4. e4 {[%emt 0:00:13]} d6 {[%emt 0:00:17]} 5. Nf3 {[%emt 0:00:08]} O-O {[%emt 0:00:12]} 6. Be2 {[%emt 0:00:09]} e5 {[%emt 0:00:21]} 7. d5 {[%emt 0:00:14]} a5 {[%emt 0:00:55]} 8. Be3 {[%emt 0:00:08]} Ng4 {[%emt 0:05:24]} 9. Bg5 {[%emt 0:00:20]} f6 {[%emt 0:00:51]} 10. Bh4 {[%emt 0:00:11]} Qe8 {[%emt 0:02:50]} 11. Nd2 {[%emt 0:00:08]} f5 {[%emt 0:00:58]} 12. Bxg4 {[%emt 0:00:07]} fxg4 {[%emt 0:00:05]} 13. Bg5 {[%emt 0:00:05]} Na6 {[%emt 0:01:54]} 14. O-O {[%emt 0:02:31]} Bd7 {[%emt 0:00:26]} 15. b3 {[%emt 0:01:31]} Bf6 {[%emt 0:08:22]} 16. Be3 {[%emt 0:02:34]} Qe7 {[%emt 0:01:03]} 17. a3 {[%emt 0:01:05]} Bg5 {[%emt 0:01:02]} 18. Qe2 {[%emt 0:00:27]} Rfb8 {[%emt 0:19:33]} 19. Rfb1 {[%emt 0:14:46]} Bxe3 {[%emt 0:03:00]} 20. Qxe3 {[%emt 0:00:13]} b5 {[%emt 0:00:31]} 21. b4 {[%emt 0:02:50]} axb4 {[%emt 0:01:45]} 22. axb4 {[%emt 0:00:49]} bxc4 {[%emt 0:00:28]} 23. b5 {[%emt 0:05:44]} Nc5 {[%emt 0:00:19]} 24. Rxa8 {[%emt 0:00:09]} Rxa8 {[%emt 0:00:05]} 25. Nxc4 {[%emt 0:00:07]} Be8 {[%emt 0:07:22]} 26. g3 {[%emt 0:04:48]} Rb8 {[%emt 0:04:02]} 27. Na5 {[%emt 0:01:49]} Qf6 {[%emt 0:00:31]} 28. Kg2 {[%emt 0:10:27]} g5 {[%emt 0:02:08]} 29. Nc4 {[%emt 0:10:15]} Bg6 {[%emt 0:01:21]} 30. b6 {[%emt 0:03:37]} cxb6 {[%emt 0:00:58]} 31. Rxb6 {[%emt 0:00:06]} Rxb6 {[%emt 0:01:47]} 32. Nxb6 {[%emt 0:00:02]} Kg7 {[%emt 0:03:38]} 33. Nc4 {[%emt 0:03:06]} h6 {[%emt 0:01:35]} 34. f3 {[%emt 0:01:54]} gxf3+ {[%emt 0:04:53]} 35. Qxf3 {[%emt 0:00:11]} Qe7 {[%emt 0:00:48]} 36. g4 {[%emt 0:05:54]} Nb3 {[%emt 0:03:15]} 37. Nb5 {[%emt 0:01:27]} Nd4 {[%emt 0:00:23]} 38. Nxd4 {[%emt 0:00:59]} exd4 {[%emt 0:00:05]} 39. Nd2 {[%emt 0:04:28]} Qc7 {[%emt 0:00:30]} 40. Kf2 {[%emt 0:02:41]} Qc3 {[%emt 0:00:41]} 41. Ke2 {[%emt 0:32:58]} Be8 {[%emt 0:10:03]} 42. Qxc3 {[%emt 0:00:00]} dxc3 {[%emt 0:00:04]} 43. Nb3 {[%emt 0:00:00]} Kf6 {[%emt 0:03:49]} 44. Nd4 {[%emt 0:00:00]} Ke5 {[%emt 0:02:06]} 45. Ke3 {[%emt 0:00:00]} Ba4 {[%emt 0:01:26]} 46. Nc6+ {[%emt 0:00:00]} Kf6 {[%emt 0:00:13]} 47. Kd3 {[%emt 0:00:00]} Bd1 {[%emt 0:05:02]} 48. Kxc3 {[%emt 0:00:00]} Bxg4 {[%emt 0:00:05]} 49. Kd4 {[%emt 0:00:00]} Bc8 {[%emt 0:01:17]} 50. e5+ {[%emt 0:00:00]} dxe5+ {[%emt 0:00:08]} 51. Nxe5 {[%emt 0:00:00]} h5 {[%emt 0:00:45]} 52. d6 {[%emt 0:00:00]} Ke6 {[%emt 0:01:35]} 53. d7 {[%emt 0:00:00]} Bxd7 {[%emt 0:00:05]} 54. Nxd7 {[%emt 0:00:00]} Kxd7 {[%emt 0:00:02]} 55. Ke5 {[%emt 0:00:00]} Ke7 {[%emt 0:00:23]} 1/2-1/2

[Event "Norwegian Team Championship 2019"]
[Site "Drammen"]
[Date "2019.06.02"]
[Round "6.4"]
[White "Galinsky, Timofey"]
[Black "Storme, Isak"]
[Result "0-1"]
[ECO "A08"]
[WhiteElo "2382"]
[BlackElo "2309"]
[Annotator "ChessBase"]
[PlyCount "82"]
[EventDate "2019.05.30"]
[EventType "swiss"]
[EventCountry "NOR"]
[SourceTitle "playchess.com"]
[Source "ChessBase"]
[SourceQuality "1"]
[TimeControl "40/5400:1800"]

1. Nf3 {[%emt 0:00:07]} d5 {[%emt 0:00:08]} 2. d3 {[%emt 0:00:24]} Nf6 {[%emt 0:00:17]} 3. Nbd2 {[%emt 0:00:21]} c5 {[%emt 0:01:01]} 4. g3 {[%emt 0:01:43]} Nc6 {[%emt 0:06:25]} 5. Bg2 {[%emt 0:00:24]} g6 {[%emt 0:01:29]} 6. O-O {[%emt 0:01:40]} Bg7 {[%emt 0:00:10]} 7. c4 {[%emt 0:02:12]} d4 {[%emt 0:01:21]} 8. Nb3 {[%emt 0:07:34]} Nd7 {[%emt 0:06:37]} 9. e3 {[%emt 0:01:02]} O-O {[%emt 0:00:39]} 10. Re1 {[%emt 0:07:01]} e5 {[%emt 0:04:13]} 11. exd4 {[%emt 0:00:23]} cxd4 {[%emt 0:00:38]} 12. Bd2 {[%emt 0:03:58]} a5 {[%emt 0:04:05]} 13. a4 {[%emt 0:01:29]} Rb8 {[%emt 0:05:09]} 14. Ng5 {[%emt 0:01:26]} h6 {[%emt 0:18:08]} 15. Ne4 {[%emt 0:02:12]} Qc7 {[%emt 0:05:44]} 16. f4 {[%emt 0:02:53]} b6 {[%emt 0:01:40]} 17. Rc1 {[%emt 0:01:56]} f5 {[%emt 0:01:56]} 18. Nf2 {[%emt 0:00:05]} Nc5 {[%emt 0:01:05]} 19. fxe5 {[%emt 0:10:16]} Nxe5 {[%emt 0:00:51]} 20. Bf4 {[%emt 0:00:29]} g5 {[%emt 0:04:13]} 21. Bxe5 {[%emt 0:01:46]} Bxe5 {[%emt 0:00:06]} 22. Nxc5 {[%emt 0:00:04]} bxc5 {[%emt 0:00:43]} 23. Qh5 {[%emt 0:02:50]} Kg7 {[%emt 0:01:10]} 24. Rc2 {[%emt 0:00:32]} f4 {[%emt 0:04:43]} 25. Rce2 {[%emt 0:02:08]} fxg3 {[%emt 0:00:21]} 26. hxg3 {[%emt 0:00:04]} Rxf2 {[%emt 0:02:09]} 27. Rxf2 {[%emt 0:00:10]} Bxg3 {[%emt 0:00:16]} 28. Rf6 {[%emt 0:00:04]} Kxf6 {[%emt 0:05:42]} 29. Qxh6+ {[%emt 0:00:13]} Kf5 {[%emt 0:00:08]} 30. Qf8+ {[%emt 0:09:35]} Kg6 {[%emt 0:02:12]} 31. Be4+ {[%emt 0:02:12]} Kh5 {[%emt 0:00:04]} 32. Qe8+ {[%emt 0:02:29]} Kh4 {[%emt 0:01:06]} 33. Qh8+ {[%emt 0:03:35]} Kg4 {[%emt 0:00:01]} 34. Rf1 {[%emt 0:14:23]} Bh4 {[%emt 0:00:12]} 35. Bf3+ {[%emt 0:00:59]} Kg3 {[%emt 0:00:26]} 36. Qh5 {[%emt 0:00:51]} Qf4 {[%emt 0:01:31]} 37. Bg2 {[%emt 0:00:07]} Bg4 {[%emt 0:00:55]} 38. Qg6 {[%emt 0:00:01]} Rxb2 {[%emt 0:01:04]} 39. Rxf4 {[%emt 0:00:12]} Rxg2+ {[%emt 0:00:02]} 40. Kf1 {[%emt 0:00:08]} Be2+ {[%emt 0:00:25]} 41. Ke1 {[%emt 0:00:06]} Kxf4+ {[%emt 0:00:09]} 0-1

[Event "Norwegian Team Championship 2019"]
[Site "Drammen"]
[Date "2019.06.02"]
[Round "6.5"]
[White "Haldorsen, Benjamin"]
[Black "Abdrlauf, Elham"]
[Result "1/2-1/2"]
[ECO "C10"]
[WhiteElo "2437"]
[BlackElo "2231"]
[Annotator "ChessBase"]
[PlyCount "66"]
[EventDate "2019.05.30"]
[EventType "swiss"]
[EventCountry "NOR"]
[SourceTitle "playchess.com"]
[Source "ChessBase"]
[SourceQuality "1"]
[TimeControl "40/5400:1800"]

1. e4 {[%emt 0:01:00]} e6 {[%emt 0:00:06]} 2. d4 {[%emt 0:01:24]} d5 {[%emt 0:00:09]} 3. Nc3 {[%emt 0:00:04]} Nf6 {[%emt 0:00:04]} 4. Bg5 {[%emt 0:00:06]} dxe4 {[%emt 0:00:06]} 5. Nxe4 {[%emt 0:00:05]} Nbd7 {[%emt 0:00:09]} 6. Nf3 {[%emt 0:00:51]} Be7 {[%emt 0:01:24]} 7. Nxf6+ {[%emt 0:01:28]} Nxf6 {[%emt 0:03:02]} 8. Bd3 {[%emt 0:01:12]} O-O {[%emt 0:00:48]} 9. Qe2 {[%emt 0:01:47]} c5 {[%emt 0:03:33]} 10. O-O-O {[%emt 0:07:11]} cxd4 {[%emt 0:02:18]} 11. Kb1 {[%emt 0:00:15]} Nd5 {[%emt 0:10:41]} 12. Bxe7 {[%emt 0:06:10]} Qxe7 {[%emt 0:00:16]} 13. Nxd4 {[%emt 0:01:31]} Re8 {[%emt 0:28:27]} 14. Nf3 {[%emt 0:17:19]} Nf4 {[%emt 0:05:11]} 15. Qe4 {[%emt 0:00:26]} Nxd3 {[%emt 0:00:24]} 16. Rxd3 {[%emt 0:00:03]} f6 {[%emt 0:02:34]} 17. Nh4 {[%emt 0:08:43]} e5 {[%emt 0:02:03]} 18. Nf5 {[%emt 0:07:11]} Bxf5 {[%emt 0:01:01]} 19. Qxf5 {[%emt 0:00:01]} Rad8 {[%emt 0:02:07]} 20. Rhd1 {[%emt 0:01:37]} Rxd3 {[%emt 0:03:11]} 21. Qxd3 {[%emt 0:01:14]} g6 {[%emt 0:01:41]} 22. b3 {[%emt 0:00:40]} b6 {[%emt 0:01:59]} 23. a4 {[%emt 0:00:05]} f5 {[%emt 0:00:20]} 24. Qb5 {[%emt 0:02:45]} Qe6 {[%emt 0:00:59]} 25. Rd7 {[%emt 0:06:21]} Re7 {[%emt 0:00:14]} 26. Rd8+ {[%emt 0:00:06]} Kg7 {[%emt 0:00:09]} 27. Qd3 {[%emt 0:00:25]} e4 {[%emt 0:02:42]} 28. Qd4+ {[%emt 0:00:11]} Kh6 {[%emt 0:00:01]} 29. Qe3+ {[%emt 0:06:18]} Kg7 {[%emt 0:00:18]} 30. Qd4+ {[%emt 0:01:33]} Kh6 {[%emt 0:00:13]} 31. Qe3+ {[%emt 0:05:05]} Kg7 {[%emt 0:00:24]} 32. Qc3+ {[%emt 0:02:20]} Kh6 {[%emt 0:00:21]} 33. Qe3+ {[%emt 0:00:47]} Kg7 {[%emt 0:01:29]} 1/2-1/2

[Event "Norwegian Team Championship 2019"]
[Site "Drammen"]
[Date "2019.06.02"]
[Round "6.6"]
[White "Melaa, Sondre"]
[Black "Stokke, Kjetil"]
[Result "1/2-1/2"]
[ECO "B06"]
[WhiteElo "2038"]
[BlackElo "2343"]
[Annotator "ChessBase"]
[PlyCount "44"]
[EventDate "2019.05.30"]
[EventType "swiss"]
[EventCountry "NOR"]
[SourceTitle "playchess.com"]
[Source "ChessBase"]
[SourceQuality "1"]
[TimeControl "40/5400:1800"]

1. d4 {[%emt 0:00:16]} g6 {[%emt 0:01:03]} 2. e4 {[%emt 0:01:36]} Bg7 {[%emt 0:00:11]} 3. Nf3 {[%emt 0:00:18]} d6 {[%emt 0:01:04]} 4. Bc4 {[%emt 0:00:09]} Nf6 {[%emt 0:00:08]} 5. Qe2 {[%emt 0:00:07]} O-O {[%emt 0:00:05]} 6. O-O {[%emt 0:02:08]} Nfd7 {[%emt 0:05:07]} 7. Rd1 {[%emt 0:07:48]} Nc6 {[%emt 0:03:41]} 8. Be3 {[%emt 0:10:50]} Nb6 {[%emt 0:00:49]} 9. Bb3 {[%emt 0:01:41]} Na5 {[%emt 0:01:34]} 10. Nbd2 {[%emt 0:03:28]} Qe8 {[%emt 0:03:52]} 11. c3 {[%emt 0:02:05]} Nxb3 {[%emt 0:01:52]} 12. axb3 {[%emt 0:00:23]} a6 {[%emt 0:04:15]} 13. Nf1 {[%emt 0:06:36]} e6 {[%emt 0:06:24]} 14. Qd2 {[%emt 0:07:45]} Qb5 {[%emt 0:03:24]} 15. Qc2 {[%emt 0:01:35]} f5 {[%emt 0:05:02]} 16. c4 {[%emt 0:02:46]} Qe8 {[%emt 0:00:25]} 17. exf5 {[%emt 0:01:54]} gxf5 {[%emt 0:00:32]} 18. Qd2 {[%emt 0:03:47]} Qg6 {[%emt 0:01:35]} 19. Re1 {[%emt 0:01:31]} Nd7 {[%emt 0:02:22]} 20. Bf4 {[%emt 0:01:51]} Nf6 {[%emt 0:02:03]} 21. Ng3 {[%emt 0:03:00]} b6 {[%emt 0:09:43]} 22. Ng5 {[%emt 0:10:26]} Re8 {[%emt 0:02:35]} 1/2-1/2

[Event "Norwegian Team Championship 2019"]
[Site "Drammen"]
[Date "2019.06.02"]
[Round "6.7"]
[White "Gullaksen, Eirik"]
[Black "Tunsjo, Axel"]
[Result "1/2-1/2"]
[ECO "B50"]
[WhiteElo "2327"]
[BlackElo "2002"]
[Annotator "ChessBase"]
[PlyCount "52"]
[EventDate "2019.05.30"]
[EventType "swiss"]
[EventCountry "NOR"]
[SourceTitle "playchess.com"]
[Source "ChessBase"]
[SourceQuality "1"]
[TimeControl "40/5400:1800"]

1. e4 {[%emt 0:00:06]} c5 {[%emt 0:01:01]} 2. Nf3 {[%emt 0:00:20]} e6 {[%emt 0:01:09]} 3. b3 {[%emt 0:00:28]} d6 {[%emt 0:03:31]} 4. Bb2 {[%emt 0:00:51]} Nf6 {[%emt 0:00:26]} 5. e5 {[%emt 0:00:57]} dxe5 {[%emt 0:00:08]} 6. Nxe5 {[%emt 0:00:08]} Bd6 {[%emt 0:01:01]} 7. f4 {[%emt 0:02:47]} O-O {[%emt 0:00:55]} 8. Bd3 {[%emt 0:02:03]} b6 {[%emt 0:01:21]} 9. Qf3 {[%emt 0:02:56]} Qc7 {[%emt 0:13:38]} 10. Na3 {[%emt 0:01:30]} Bb7 {[%emt 0:00:34]} 11. Qg3 {[%emt 0:00:12]} Be7 {[%emt 0:08:33]} 12. O-O {[%emt 0:05:10]} Ne4 {[%emt 0:12:37]} 13. Bxe4 {[%emt 0:00:48]} Bxe4 {[%emt 0:00:49]} 14. Nd7 {[%emt 0:03:22]} Bg6 {[%emt 0:00:10]} 15. Nxf8 {[%emt 0:00:08]} Bxf8 {[%emt 0:00:05]} 16. d3 {[%emt 0:00:57]} Nc6 {[%emt 0:00:31]} 17. Nc4 {[%emt 0:00:08]} Rd8 {[%emt 0:00:59]} 18. Ne5 {[%emt 0:01:04]} Nd4 {[%emt 0:00:39]} 19. Qf2 {[%emt 0:02:49]} Rd5 {[%emt 0:09:21]} 20. Rad1 {[%emt 0:03:30]} Bd6 {[%emt 0:03:08]} 21. Nxg6 {[%emt 0:03:59]} hxg6 {[%emt 0:00:51]} 22. c3 {[%emt 0:03:01]} Bxf4 {[%emt 0:05:15]} 23. g3 {[%emt 0:10:50]} Rg5 {[%emt 0:00:21]} 24. cxd4 {[%emt 0:01:44]} Bxg3 {[%emt 0:00:09]} 25. hxg3 {[%emt 0:11:33]} Rxg3+ {[%emt 0:00:05]} 26. Kh1 {[%emt 0:00:10]} Rh3+ {[%emt 0:00:10]} 1/2-1/2

[Event "Norwegian Team Championship 2019"]
[Site "Drammen"]
[Date "2019.06.02"]
[Round "6.8"]
[White "Sidali, Elias Hulleberg"]
[Black "Gabrielsen, Stig"]
[Result "0-1"]
[ECO "B40"]
[WhiteElo "1953"]
[BlackElo "2279"]
[Annotator "ChessBase"]
[PlyCount "64"]
[EventDate "2019.05.30"]
[EventType "swiss"]
[EventCountry "NOR"]
[SourceTitle "playchess.com"]
[Source "ChessBase"]
[SourceQuality "1"]
[TimeControl "40/5400:1800"]

1. e4 {[%emt 0:00:02]} c5 {[%emt 0:00:39]} 2. Nf3 {[%emt 0:00:01]} e6 {[%emt 0:00:08]} 3. Qe2 {[%emt 0:00:32]} Nc6 {[%emt 0:00:19]} 4. g3 {[%emt 0:00:05]} Nf6 {[%emt 0:03:54]} 5. Bg2 {[%emt 0:00:17]} Be7 {[%emt 0:00:07]} 6. O-O {[%emt 0:00:06]} O-O {[%emt 0:00:04]} 7. d3 {[%emt 0:00:06]} d6 {[%emt 0:05:59]} 8. c3 {[%emt 0:03:08]} Bd7 {[%emt 0:08:08]} 9. a3 {[%emt 0:00:35]} Rc8 {[%emt 0:04:27]} 10. b4 {[%emt 0:00:32]} a6 {[%emt 0:00:36]} 11. h3 {[%emt 0:05:29]} Ne5 {[%emt 0:08:09]} 12. Be3 {[%emt 0:12:15]} Nxf3+ {[%emt 0:01:46]} 13. Bxf3 {[%emt 0:00:33]} Bc6 {[%emt 0:03:16]} 14. Nd2 {[%emt 0:04:59]} b5 {[%emt 0:06:56]} 15. Nb3 {[%emt 0:04:36]} Ba8 {[%emt 0:06:48]} 16. Bd2 {[%emt 0:04:32]} c4 {[%emt 0:02:18]} 17. Na5 {[%emt 0:01:08]} cxd3 {[%emt 0:00:51]} 18. Qxd3 {[%emt 0:02:05]} Nd7 {[%emt 0:00:38]} 19. Bf4 {[%emt 0:00:53]} g5 {[%emt 0:00:28]} 20. Bd2 {[%emt 0:05:12]} Ne5 {[%emt 0:00:19]} 21. Qe2 {[%emt 0:00:06]} Nxf3+ {[%emt 0:00:59]} 22. Qxf3 {[%emt 0:00:02]} f5 {[%emt 0:00:17]} 23. Qh5 {[%emt 0:03:01]} Bxe4 {[%emt 0:00:50]} 24. Qh6 {[%emt 0:01:11]} Bf6 {[%emt 0:01:13]} 25. Rad1 {[%emt 0:02:45]} Rc7 {[%emt 0:03:08]} 26. Bxg5 {[%emt 0:02:38]} Bxg5 {[%emt 0:00:26]} 27. Qxe6+ {[%emt 0:00:03]} Kh8 {[%emt 0:02:40]} 28. Rxd6 {[%emt 0:01:54]} Qe7 {[%emt 0:01:42]} 29. Qxe7 {[%emt 0:04:15]} Bxe7 {[%emt 0:00:11]} 30. Rxa6 {[%emt 0:00:10]} Rxc3 {[%emt 0:00:12]} 31. Ra7 {[%emt 0:01:26]} Bf6 {[%emt 0:01:13]} 32. Nb7 {[%emt 0:00:36]} Rc7 {[%emt 0:00:26]} 0-1

[Event "Norwegian Team Championship 2019"]
[Site "Drammen"]
[Date "2019.06.02"]
[Round "6.9"]
[White "Elsness, Frode"]
[Black "Ramirez Garrastacho, Manuel"]
[Result "1-0"]
[ECO "E90"]
[WhiteElo "2440"]
[BlackElo "2120"]
[Annotator "ChessBase"]
[PlyCount "36"]
[EventDate "2019.05.30"]
[EventType "swiss"]
[EventCountry "NOR"]
[SourceTitle "playchess.com"]
[Source "ChessBase"]
[SourceQuality "1"]
[TimeControl "40/5400:1800"]

1. Nf3 {[%emt 0:00:03]} Nf6 {[%emt 0:00:14]} 2. d4 {[%emt 0:00:27]} g6 {[%emt 0:00:08]} 3. c4 {[%emt 0:01:15]} Bg7 {[%emt 0:00:06]} 4. Nc3 {[%emt 0:00:19]} O-O {[%emt 0:00:07]} 5. e4 {[%emt 0:00:10]} d6 {[%emt 0:00:04]} 6. h3 {[%emt 0:02:50]} e5 {[%emt 0:01:57]} 7. d5 {[%emt 0:00:02]} Nbd7 {[%emt 0:00:42]} 8. Be3 {[%emt 0:00:33]} Nh5 {[%emt 0:06:36]} 9. g3 {[%emt 0:00:42]} a6 {[%emt 0:03:24]} 10. Be2 {[%emt 0:01:58]} Bf6 {[%emt 0:23:00]} 11. Qd2 {[%emt 0:08:14]} Be7 {[%emt 0:00:43]} 12. h4 {[%emt 0:04:55]} f5 {[%emt 0:03:16]} 13. Bh6 {[%emt 0:06:10]} Ng7 {[%emt 0:00:08]} 14. h5 {[%emt 0:02:15]} gxh5 {[%emt 0:13:12]} 15. exf5 {[%emt 0:02:14]} Nf6 {[%emt 0:01:46]} 16. Nh4 {[%emt 0:06:18]} Rf7 {[%emt 0:04:01]} 17. Qc2 {[%emt 0:14:50]} Ng4 {[%emt 0:04:38]} 18. Bxg7 {[%emt 0:00:31]} Kxg7 {[%emt 0:13:34]} 1-0

[Event "Norwegian Team Championship 2019"]
[Site "Drammen"]
[Date "2019.06.02"]
[Round "6.11"]
[White "Mihajlov, Svetoslav"]
[Black "Grover, Sigurd Loe"]
[Result "1/2-1/2"]
[ECO "D32"]
[WhiteElo "2161"]
[BlackElo "2028"]
[Annotator "ChessBase"]
[PlyCount "27"]
[EventDate "2019.05.30"]
[EventType "swiss"]
[EventCountry "NOR"]
[SourceTitle "playchess.com"]
[Source "ChessBase"]
[SourceQuality "1"]
[TimeControl "40/5400:1800"]

1. d4 {[%emt 0:00:00]} d5 {[%emt 0:01:11]} 2. Nf3 {[%emt 0:00:06]} c5 {[%emt 0:00:52]} 3. dxc5 {[%emt 0:00:46]} Nf6 {[%emt 0:00:45]} 4. c4 {[%emt 0:03:12]} e6 {[%emt 0:00:07]} 5. cxd5 {[%emt 0:01:25]} Bxc5 {[%emt 0:02:37]} 6. Nc3 {[%emt 0:00:18]} exd5 {[%emt 0:00:14]} 7. a3 {[%emt 0:05:58]} Nc6 {[%emt 0:08:43]} 8. e3 {[%emt 0:03:39]} O-O {[%emt 0:02:36]} 9. Be2 {[%emt 0:01:28]} a6 {[%emt 0:03:04]} 10. O-O {[%emt 0:01:02]} Ba7 {[%emt 0:04:04]} 11. b4 {[%emt 0:00:52]} d4 {[%emt 0:00:31]} 12. Nxd4 {[%emt 0:00:12]} Nxd4 {[%emt 0:00:16]} 13. exd4 {[%emt 0:00:06]} Qxd4 {[%emt 0:03:58]} 14. Qxd4 {[%emt 0:00:28]} 1/2-1/2

[Event "Norwegian Team Championship 2019"]
[Site "Drammen"]
[Date "2019.06.02"]
[Round "6.12"]
[White "Rueda-Kjeldsen, Juan Carlos"]
[Black "Dale, Gunnar Brandshaug"]
[Result "1-0"]
[ECO "A06"]
[WhiteElo "1963"]
[BlackElo "2003"]
[Annotator "NA"]
[PlyCount "121"]
[EventDate "2019.05.30"]
[EventType "swiss"]
[EventCountry "NOR"]
[SourceTitle "playchess.com"]
[Source "ChessBase"]
[SourceQuality "1"]
[TimeControl "40/5400:1800"]

1. Nf3 {[%emt 0:00:02]} Nf6 {[%emt 0:01:00]} 2. b3 {[%emt 0:00:08]} d5 {[%emt 0:00:34]} 3. Bb2 {[%emt 0:00:14]} Bf5 {[%emt 0:00:46]} 4. e3 {[%emt 0:00:22]} c6 {[%emt 0:00:17]} 5. Ne5 {[%emt 0:00:59]} (5. Be2 Nbd7 6. O-O h6 7. c4 e6 8. Nc3 Be7 9. d4 O-O 10. a3 a5 11. c5 Ne4 12. b4 b5 13. Nd2 Nxd2 14. Qxd2 Qc7 15. f4 Nf6 16. Bf3 axb4 17. axb4 Rxa1 18. Rxa1 {½-½ (31) Vachier Lagrave,M (2780)-Dreev,A (2649) chess.com INT 2018}) 5... Nbd7 {[%emt 0:01:19]} 6. f4 {[%emt 0:01:53] A06: Réti Opening:1 Nf3 d5} e6 {[%emt 0:00:26]} 7. Be2 $146 {[%emt 0:02:17]} ({Predecessor:} 7. Nxd7 Qxd7 8. Be2 O-O-O 9. g4 Bg6 10. d3 Bc5 11. g5 Ne8 12. Qd2 {0-1 (38) Wilson,M (1830)-Giles,Y (1942) Hinckley Island 2012}) 7... Be7 {[%emt 0:01:06]} 8. O-O {[%emt 0:00:20]} Nxe5 {[%emt 0:00:37]} 9. fxe5 {[%emt 0:00:29]} Nd7 {[%emt 0:00:14]} 10. d4 {[%emt 0:24:59]} O-O {[%emt 0:02:37]} 11. Nd2 {[%emt 0:01:59]} a5 {[%emt 0:05:56]} 12. a4 {[%emt 0:03:25]} Qc7 {[%emt 0:03:49]} 13. Rc1 {[%emt 0:02:39]} f6 {[%emt 0:02:13]} 14. c4 {[%emt 0:06:40]} fxe5 {[%emt 0:01:44]} 15. cxd5 {[%emt 0:00:37]} exd5 {[%emt 0:00:46]} 16. dxe5 {[%emt 0:11:49]} Nxe5 {[%emt 0:02:08]} 17. Nf3 {[%emt 0:01:21]} Bf6 {[%emt 0:07:17]} 18. Ba3 {[%emt 0:07:24]} Rf7 {[%emt 0:01:32]} 19. Nd4 {[%emt 0:00:30]} Bg6 {[%emt 0:05:46]} 20. Ne6 {[%emt 0:04:47]} Qd7 {[%emt 0:02:07]} 21. Nf4 {[%emt 0:02:34]} Be4 {[%emt 0:01:33]} 22. Nh5 {[%emt 0:01:01]} Be7 {[%emt 0:01:17]} 23. Rxf7 {[%emt 0:01:01]} Nxf7 {[%emt 0:01:28]} 24. Qd4 {[%emt 0:00:47]} Ne5 {[%emt 0:02:25]} 25. Bb2 {[%emt 0:04:03]} Bd6 {[%emt 0:01:07]} 26. Ng3 {[%emt 0:00:35]} Bg6 {[%emt 0:02:05]} 27. e4 {[%emt 0:00:25]} Bxe4 {[%emt 0:03:54]} 28. Nxe4 {[%emt 0:00:22]} dxe4 {[%emt 0:00:05]} 29. Rd1 {[%emt 0:00:13]} Rd8 {[%emt 0:01:22]} 30. Qxd6 {[%emt 0:02:04]} Qxd6 {[%emt 0:00:06]} 31. Rxd6 {[%emt 0:00:05]} Rxd6 {[%emt 0:00:04]} 32. Bxe5 {[%emt 0:00:04]} Rd2 {[%emt 0:02:24]} 33. Kf2 {[%emt 0:00:11]} g6 {[%emt 0:01:38]} 34. Ke3 {[%emt 0:00:06]} Ra2 {[%emt 0:00:54]} 35. g4 {[%emt 0:00:19]} Kf7 {[%emt 0:01:39]} 36. Bc4+ {[%emt 0:00:12]} Ke7 {[%emt 0:00:12]} 37. g5 {[%emt 0:00:22]} Rg2 {[%emt 0:00:57]} 38. Bg8 {[%emt 0:00:38]} Rxg5 {[%emt 0:00:26]} 39. Kxe4 {[%emt 0:00:51]} Rh5 {[%emt 0:01:01]} 40. Bc4 {[%emt 0:00:41]} Rh3 {[%emt 0:00:25]} 41. Kd4 {[%emt 0:05:09]} b5 {[%emt 0:01:09]} 42. Bd3 {[%emt 0:09:30]} Rh4+ {[%emt 0:01:34]} 43. Be4 {[%emt 0:00:53]} Ke6 {[%emt 0:01:45]} 44. Bg3 {[%emt 0:00:35]} Rg4 {[%emt 0:01:27]} 45. Ke3 {[%emt 0:01:17]} bxa4 {[%emt 0:00:57]} 46. bxa4 {[%emt 0:00:09]} Kd7 {[%emt 0:00:40]} 47. Be1 {[%emt 0:01:42]} Rg5 $11 {[%emt 0:00:38]} 48. h4 {[%emt 0:00:45]} Re5 {[%emt 0:03:02]} 49. Kd4 {[%emt 0:00:23]} Re8 {[%emt 0:01:13]} 50. Bd2 {[%emt 0:00:43]} Kd6 {[%emt 0:01:25]} 51. Bxa5 {[%emt 0:00:29]} c5+ {[%emt 0:00:13]} 52. Kd3 {[%emt 0:00:35]} Rg8 {[%emt 0:01:46]} 53. Bd2 {[%emt 0:00:22]} Rg7 {[%emt 0:00:36]} 54. Bf4+ {[%emt 0:00:14]} Ke6 {[%emt 0:00:22]} 55. Kc4 {[%emt 0:00:14]} Ra7 {[%emt 0:00:29]} 56. Kb5 {[%emt 0:00:15]} Kd7 {[%emt 0:02:11]} 57. a5 {[%emt 0:00:12]} Kc8 {[%emt 0:00:29]} 58. a6 {[%emt 0:00:15]} Re7 {[%emt 0:00:47]} 59. Bd5 {[%emt 0:00:33]} Rg7 {[%emt 0:01:19]} 60. Kb6 {[%emt 0:00:21]} Kd8 {[%emt 0:00:36]} 61. Bb7 {[%emt 0:00:29]} 1-0